bitfinex/quotes_BTCUSD_20250527
["timestamp","ask_amount","ask_price","bid_price","bid_amount"]
[1748329382226,0.00926206,108900.0,108890.0,1.50756483]
[1748329382431,0.01126197,108900.0,108890.0,2.15796483]
[1748329382634,0.01326197,108900.0,108890.0,2.15896483]
[1748329383086,0.01326197,108900.0,108890.0,2.17436483]
[1748329383685,0.00408,108900.0,108890.0,2.19076483]
[1748329384839,0.01326197,108900.0,108890.0,1.8596341]
[1748329385126,0.00408,108900.0,108890.0,2.19076483]
[1748329385299,0.00408,108900.0,108890.0,2.19072483]
[1748329386152,0.00408,108900.0,108890.0,2.21827283]
[1748329386543,0.01326197,108900.0,108890.0,2.21827283]
[1748329386877,0.01326197,108900.0,108890.0,1.8871421]
[1748329387079,0.01326197,108900.0,108890.0,2.21827283]
[1748329388688,0.03162634,108900.0,108890.0,1.8871421]
[1748329388892,0.00408,108900.0,108890.0,2.21827283]
[1748329389131,0.01326197,108900.0,108890.0,1.8871421]
[1748329389315,0.01326197,108900.0,108890.0,2.21827283]
[1748329389521,0.00408,108900.0,108890.0,2.21827283]
[1748329391974,0.01326197,108900.0,108890.0,2.21827283]
[1748329392114,0.00408,108900.0,108890.0,2.21827283]
[1748329393111,0.01326206,108900.0,108890.0,1.8871421]
[1748329393293,0.01326206,108900.0,108890.0,2.21827283]
[1748329393294,0.00408,108900.0,108890.0,2.21827283]
[1748329393831,0.02244429,108900.0,108890.0,2.20187283]
[1748329394028,0.01326206,108900.0,108890.0,2.20187283]
[1748329394801,0.22446396,108900.0,108890.0,1.90814678]
[1748329395027,0.22209976,108900.0,108890.0,1.51352181]
[1748329395230,0.04762777,108900.0,108890.0,1.80720829]
[1748329395814,0.03844504,108900.0,108890.0,1.80720829]
[1748329396019,0.02239249,108900.0,108890.0,2.147522]
[1748329396255,0.04075736,108900.0,108890.0,2.147522]
[1748329396459,0.04075728,108900.0,108890.0,2.147522]
[1748329396998,0.04075728,108900.0,108890.0,2.15675032]
[1748329397309,0.0315748,108900.0,108890.0,2.15675032]
[1748329397519,0.0315748,108900.0,108890.0,2.17335032]
[1748329398043,0.04075719,108900.0,108890.0,2.17335032]
[1748329398253,0.01321026,108900.0,108890.0,1.84221959]
[1748329398559,0.02239257,108900.0,108890.0,2.17335032]
[1748329398716,0.01321026,108900.0,108890.0,2.17335032]
[1748329398921,0.00402812,108900.0,108890.0,2.17335032]
[1748329399119,0.01321026,108900.0,108890.0,2.17335032]
[1748329399322,0.00402812,108900.0,108890.0,2.17335032]
[1748329399539,0.00402812,108900.0,108890.0,2.18845032]
[1748329399908,0.02239241,108900.0,108890.0,2.18845032]
[1748329400498,0.02239241,108900.0,108890.0,2.17335032]
[1748329400692,0.03157489,108900.0,108890.0,2.17335032]
[1748329401185,0.0315748,108900.0,108890.0,2.17335032]
[1748329401884,0.0315748,108900.0,108890.0,2.164122]
[1748329402094,0.04075728,108900.0,108890.0,1.54107127]
[1748329402296,0.04993984,108900.0,108890.0,1.872202]
[1748329402469,0.04075728,108900.0,108890.0,2.147522]
[1748329403148,0.04993984,108900.0,108890.0,2.147522]
[1748329403355,0.23794813,108900.0,108890.0,0.001]
[1748329403567,0.58361971,108900.0,108890.0,0.001]
[1748329403771,0.67316527,108900.0,108890.0,0.001]
[1748329404424,1.01316527,108900.0,108890.0,0.001]
[1748329404631,0.21659756,108880.0,108870.0,0.00049703]
[1748329404831,0.24719756,108880.0,108870.0,0.00049703]
[1748329405036,0.33674312,108880.0,108870.0,0.00049703]
[1748329405463,0.66787385,108880.0,108870.0,0.00049703]
[1748329405890,0.67087385,108880.0,108870.0,0.00149703]
[1748329406302,0.33774312,108880.0,108870.0,0.00049703]
[1748329406529,0.34074312,108880.0,108870.0,0.00149703]
[1748329406701,0.34374312,108880.0,108870.0,0.00249703]
[1748329408627,0.25419756,108880.0,108870.0,0.00249703]
[1748329409033,0.20905671,108880.0,108870.0,0.00249703]
[1748329409415,0.19987271,108880.0,108870.0,0.27785703]
[1748329410396,0.19987271,108880.0,108870.0,0.47074762]
[1748329411384,0.19987271,108880.0,108870.0,0.4799328]
[1748329411590,0.19987271,108880.0,108870.0,0.54283803]
[1748329411764,0.02536774,108880.0,108870.0,0.98188391]
[1748329411968,0.03455199,108880.0,108870.0,0.98188391]
[1748329412172,0.04373632,108880.0,108870.0,0.98188391]
[1748329412379,0.03455199,108880.0,108870.0,0.98188391]
[1748329413001,0.21824104,108880.0,108870.0,0.34783858]
[1748329413157,0.20905704,108880.0,108870.0,0.68209703]
[1748329413506,0.20905704,108880.0,108870.0,0.87498754]
[1748329414225,0.20905704,108880.0,108870.0,0.88417263]
[1748329415244,0.20905704,108880.0,108870.0,0.89335755]
[1748329415459,0.20905704,108880.0,108870.0,0.98287906]
[1748329416218,0.20905704,108880.0,108870.0,0.9920639]
[1748329416536,0.03455199,108880.0,108870.0,1.45402486]
[1748329417137,0.21824113,108880.0,108870.0,0.1815641]
[1748329417452,0.21824113,108880.0,108870.0,1.06376842]
[1748329417634,0.21824113,108880.0,108870.0,1.07295343]
[1748329417992,0.02536825,108880.0,108870.0,1.413269]
[1748329418193,0.02536825,108880.0,108870.0,1.42245367]
[1748329418433,0.03455258,108880.0,108870.0,1.42245376]
[1748329418716,0.03455258,108880.0,108870.0,1.42245317]
[1748329418857,0.21824104,108880.0,108870.0,1.4132685]
[1748329419223,0.007,108880.0,108870.0,1.76245317]
[1748329419430,0.007,108880.0,108870.0,1.79395317]
[1748329421003,0.004,108880.0,108870.0,1.79295317]
[1748329421209,0.005,108880.0,108870.0,1.79595317]
[1748329421411,0.001,108880.0,108870.0,1.79495317]
[1748329421743,0.002,108880.0,108870.0,1.79795317]
[1748329422961,0.002,108880.0,108870.0,1.79845317]
[1748329425179,0.002,108880.0,108870.0,2.19497317]
[1748329426023,0.00169604,108880.0,108870.0,2.19497317]
[1748329428482,0.00169604,108880.0,108870.0,1.91957317]
[1748329428681,0.00169604,108880.0,108870.0,1.51537317]
[1748329428864,0.00120228,108880.0,108870.0,2.19297317]
[1748329429262,0.00120228,108880.0,108870.0,1.51537317]
[1748329429466,0.00120228,108880.0,108870.0,2.19297317]
[1748329429875,0.00120228,108880.0,108870.0,2.19244462]
[1748329431038,0.00120228,108880.0,108870.0,2.21999362]
[1748329439646,0.00120228,108880.0,108870.0,1.94463362]
[1748329439898,0.00120228,108880.0,108870.0,2.21995362]
[1748329446818,0.00120228,108880.0,108870.0,2.20262498]
[1748329447484,0.00102812,108900.0,108890.0,0.5512213]
[1748329447711,0.00102812,108900.0,108890.0,1.04959759]
[1748329447934,0.00102812,108900.0,108890.0,1.0757542]
[1748329448143,0.00102812,108900.0,108890.0,1.16527571]
[1748329448379,0.00102812,108900.0,108890.0,1.1391191]
[1748329449051,0.00202812,108900.0,108890.0,1.1441191]
[1748329449263,0.00102812,108900.0,108890.0,1.1391191]
[1748329449483,0.00302812,108900.0,108890.0,1.1481191]
[1748329449914,0.00202812,108900.0,108890.0,1.1441191]
[1748329450228,0.00302812,108900.0,108890.0,1.1481191]
[1748329451208,0.00302812,108900.0,108890.0,1.1756631]
[1748329453613,0.00302812,108900.0,108890.0,1.4509831]
[1748329454322,0.00302812,108900.0,108890.0,1.50381237]
[1748329454553,0.04627505,108900.0,108890.0,1.8190431]
[1748329454795,0.06137488,108900.0,108890.0,1.05384159]
[1748329455015,0.25421225,108900.0,108890.0,1.38033861]
[1748329455247,0.25421225,108900.0,108890.0,1.26340547]
[1748329455477,0.07055744,108900.0,108890.0,1.61290225]
[1748329456187,0.06137488,108900.0,108890.0,1.61290225]
[1748329456441,0.07055744,108900.0,108890.0,1.70242376]
[1748329456950,0.06137488,108900.0,108890.0,1.70242376]
[1748329457158,0.07055744,108900.0,108890.0,1.70242376]
[1748329457594,0.05219249,108900.0,108890.0,1.70242376]
[1748329457831,0.06137497,108900.0,108890.0,1.70242376]
[1748329458599,0.05219249,108900.0,108890.0,1.70242376]
[1748329458804,0.06137497,108900.0,108890.0,1.70242376]
[1748329459637,0.04301018,108900.0,108890.0,1.70242376]
[1748329459849,0.06137471,108900.0,108890.0,1.70242376]
[1748329460058,0.05219232,108900.0,108890.0,1.70242376]
[1748329460259,0.06137471,108900.0,108890.0,1.70242376]
[1748329460529,0.06137471,108900.0,108890.0,2.09882376]
[1748329460687,0.05219232,108900.0,108890.0,2.09882376]
[1748329461092,0.01872812,108900.0,108890.0,2.09882376]
[1748329461343,0.00302812,108900.0,108890.0,2.18836932]
[1748329461495,0.00302812,108900.0,108890.0,2.21856932]
[1748329463668,0.00918054,108920.0,108910.0,0.55118251]
[1748329463925,0.00918054,108920.0,108910.0,1.3224975]
[1748329464191,0.20196422,108930.0,108910.0,1.31331528]
[1748329464425,0.21114442,108930.0,108920.0,0.60234267]
[1748329464867,0.21164164,108930.0,108920.0,0.60234267]
[1748329465095,0.21164164,108930.0,108920.0,0.60234284]
[1748329465223,0.21164164,108930.0,108920.0,0.63459389]
[1748329465443,0.21164164,108930.0,108920.0,0.6437746]
[1748329465644,0.21164164,108930.0,108920.0,0.63459389]
[1748329465887,0.21264164,108930.0,108920.0,0.64377468]
[1748329466095,0.22718249,108930.0,108920.0,0.64377468]
[1748329466515,0.22818249,108930.0,108920.0,0.64377468]
[1748329466727,0.25928249,108930.0,108920.0,0.64377468]
[1748329467867,0.25010262,108930.0,108920.0,0.62541301]
[1748329468078,0.25010262,108930.0,108920.0,0.63459389]
[1748329468465,0.25010262,108930.0,108920.0,0.64377468]
[1748329469032,0.25010262,108930.0,108920.0,0.62541301]
[1748329469430,0.07567826,108930.0,108920.0,0.64377451]
[1748329469621,0.07567826,108930.0,108920.0,0.65295522]
[1748329469822,0.07567826,108930.0,108920.0,0.6437746]
[1748329470296,0.07567826,108930.0,108920.0,0.65295522]
[1748329470499,0.07567826,108930.0,108920.0,0.6437746]
[1748329471373,0.06649755,108930.0,108920.0,0.6437746]
[1748329471617,0.04211768,108930.0,108920.0,0.98508579]
[1748329471833,0.04457733,108930.0,108920.0,0.98508579]
[1748329472076,0.05375745,108930.0,108920.0,0.97590533]
[1748329472296,0.00249722,108930.0,108920.0,0.67427135]
[1748329472508,0.01167666,108930.0,108920.0,1.68991135]
[1748329472738,0.03003605,108930.0,108920.0,1.71745335]
[1748329472957,0.02085627,108930.0,108920.0,1.71745335]
[1748329473159,0.01167666,108930.0,108920.0,1.71745335]
[1748329473570,0.00249722,108930.0,108920.0,1.71745335]
[1748329473774,0.01167666,108930.0,108920.0,1.71745335]
[1748329474390,0.00249722,108930.0,108920.0,1.71745335]
[1748329475131,0.00249722,108930.0,108920.0,1.74895335]
[1748329477919,0.01703807,108930.0,108920.0,1.7580215]
[1748329478338,0.01703807,108930.0,108920.0,2.1543815]
[1748329479525,0.01703807,108930.0,108920.0,2.15482275]
[1748329479947,0.00249722,108930.0,108920.0,2.15482275]
[1748329480779,0.03118642,108940.0,108930.0,0.88227447]
[1748329481002,0.03132332,108940.0,108930.0,1.06134154]
[1748329481215,0.23326933,108940.0,108930.0,0.91594542]
[1748329481438,0.03132357,108940.0,108930.0,1.32352503]
[1748329481868,0.02214455,108940.0,108930.0,1.74420132]
[1748329482080,0.01296586,108940.0,108930.0,1.77570132]
[1748329482733,0.01396586,108940.0,108930.0,1.77570132]
[1748329483147,0.01396586,108940.0,108930.0,1.80324032]
[1748329484724,0.02314463,108940.0,108930.0,1.80324032]
[1748329485172,0.02314455,108940.0,108930.0,1.80324032]
[1748329485692,0.01396586,108940.0,108930.0,1.80324032]
[1748329485936,0.02314455,108940.0,108930.0,1.80324032]
[1748329486140,0.02314446,108940.0,108930.0,1.47210959]
[1748329486361,0.03232315,108940.0,108930.0,1.80324032]
[1748329486564,0.01396586,108940.0,108930.0,1.80324032]
[1748329486790,0.02314463,108940.0,108930.0,1.09806032]
[1748329486992,0.04150259,108940.0,108930.0,1.44052959]
[1748329487195,0.04150259,108940.0,108930.0,1.43892974]
[1748329487370,0.04150259,108940.0,108930.0,1.77006047]
[1748329487514,0.0415025,108940.0,108930.0,1.77006047]
[1748329488980,0.05068169,108940.0,108930.0,1.77006047]
[1748329491065,0.0415025,108940.0,108930.0,1.77006047]
[1748329491354,0.05068169,108940.0,108930.0,1.77006047]
[1748329491638,0.05068169,108940.0,108930.0,1.43892974]
[1748329491790,0.05068169,108940.0,108930.0,1.77006047]
[1748329493123,0.05068169,108940.0,108930.0,1.43892974]
[1748329493346,0.05068169,108940.0,108930.0,1.77006047]
[1748329494564,0.05068169,108940.0,108930.0,1.77050167]
[1748329494759,0.05068169,108940.0,108930.0,1.77050166]
[1748329495319,0.05068169,108940.0,108930.0,1.77050175]
[1748329495531,0.23426949,108940.0,108930.0,1.76132205]
[1748329495695,0.23427,108940.0,108930.0,1.76132205]
[1748329495894,0.22509098,108940.0,108930.0,1.76132205]
[1748329496451,0.22509098,108940.0,108930.0,1.77050175]
[1748329497481,0.22509098,108940.0,108930.0,1.15495132]
[1748329497709,0.21591179,108940.0,108930.0,1.65501652]
[1748329497922,0.21591179,108940.0,108930.0,1.66419672]
[1748329499839,0.21591179,108940.0,108930.0,1.65501677]
[1748329500045,0.21591179,108940.0,108930.0,1.67337675]
[1748329500200,0.21591179,108940.0,108930.0,1.68255662]
[1748329500551,0.21591179,108940.0,108930.0,1.39813675]
[1748329500762,0.21591179,108940.0,108930.0,1.1035227]
[1748329500763,0.19755315,108940.0,108930.0,1.1035227]
[1748329500971,0.21345315,108940.0,108930.0,1.1127029]
[1748329501183,0.21345315,108940.0,108930.0,1.29630704]
[1748329501406,0.21345315,108940.0,108930.0,1.31466719]
[1748329501623,0.21345315,108940.0,108930.0,1.31566719]
[1748329501952,0.21345315,108940.0,108930.0,1.31566718]
[1748329502367,0.21345315,108940.0,108930.0,1.32484713]
[1748329502583,0.19755315,108940.0,108930.0,1.65597786]
[1748329502796,0.19755315,108940.0,108930.0,1.66515773]
[1748329503289,0.19755315,108940.0,108930.0,1.334027]
[1748329503723,0.19755315,108940.0,108930.0,1.66515773]
[1748329504645,0.19755315,108940.0,108930.0,1.63761788]
[1748329504845,0.19755315,108940.0,108930.0,1.64679791]
[1748329505556,0.19755315,108940.0,108930.0,1.65597786]
[1748329505694,0.19755315,108940.0,108930.0,1.66515773]
[1748329506306,0.19755315,108940.0,108930.0,1.66515731]
[1748329508561,0.19755315,108940.0,108930.0,1.6651573]
[1748329509925,0.19755315,108940.0,108930.0,0.9915973]
[1748329510131,0.19755315,108940.0,108930.0,1.6631573]
[1748329510477,0.20673234,108940.0,108930.0,1.66315688]
[1748329510685,0.0415026,108940.0,108930.0,1.66315646]
[1748329510905,0.0415026,108940.0,108930.0,1.69575646]
[1748329511134,0.05068179,108940.0,108930.0,1.34812573]
[1748329511317,0.05986107,108940.0,108930.0,1.67925646]
[1748329511846,0.0415026,108940.0,108930.0,1.69585646]
[1748329512054,0.05986107,108940.0,108930.0,1.69585646]
[1748329512864,0.05068179,108940.0,108930.0,1.72339746]
[1748329513788,0.01396586,108940.0,108930.0,1.72339746]
[1748329514005,0.02314446,108940.0,108930.0,1.81294302]
[1748329514234,0.01396586,108940.0,108930.0,1.14138302]
[1748329514407,0.01396586,108940.0,108930.0,1.81294302]
[1748329514612,0.01396586,108940.0,108930.0,1.81294301]
[1748329514815,0.01396586,108940.0,108930.0,1.81494301]
[1748329515791,0.01296586,108940.0,108930.0,1.81494301]
[1748329516219,0.01296586,108940.0,108930.0,1.81594301]
[1748329516424,0.0001369,108940.0,108930.0,1.81594301]
[1748329517235,0.0001369,108940.0,108930.0,1.815943]
[1748329522149,0.0001369,108940.0,108930.0,1.48481227]
[1748329522383,0.0001369,108940.0,108930.0,1.815943]
[1748329524477,0.0001369,108940.0,108930.0,1.814943]
[1748329524690,0.21662334,108940.0,108930.0,0.37198215]
[1748329524890,0.24762334,108940.0,108930.0,1.04346215]
[1748329525091,0.24762334,108940.0,108930.0,0.34444114]
[1748329525298,0.23844432,108940.0,108930.0,1.02510134]
[1748329525724,0.22926504,108940.0,108930.0,1.01592114]
[1748329526561,0.22926504,108940.0,108930.0,1.10544265]
[1748329527219,0.22926504,108940.0,108930.0,0.43396265]
[1748329527430,0.22926504,108940.0,108930.0,0.00444114]
[1748329527631,0.22926504,108940.0,108930.0,0.67592114]
[1748329530236,0.22926504,108940.0,108930.0,0.8687854]
[1748329530452,0.22926504,108940.0,108930.0,0.85960528]
[1748329530670,0.22926504,108940.0,108930.0,0.67600114]
[1748329531336,0.21376504,108940.0,108930.0,0.67600114]
[1748329531570,0.02385652,108940.0,108930.0,1.27507674]
[1748329531828,0.03303571,108940.0,108930.0,1.29097674]
[1748329532066,0.05139435,108940.0,108930.0,0.95984601]
[1748329532291,0.22580287,108940.0,108930.0,1.26589713]
[1748329532519,0.22580287,108940.0,108930.0,1.27507691]
[1748329534290,0.22580287,108940.0,108930.0,1.26589713]
[1748329535419,0.22580287,108940.0,108930.0,0.06124227]
[1748329535420,0.2074444,108940.0,108930.0,0.06124227]
[1748329535667,0.2385444,108940.0,108930.0,0.67600114]
[1748329535896,0.2224444,108940.0,108930.0,0.87796543]
[1748329536104,0.2074444,108940.0,108930.0,0.87796543]
[1748329536308,0.2074444,108940.0,108930.0,1.29861767]
[1748329536513,0.0238566,108940.0,108930.0,1.34847715]
[1748329536720,0.0330352,108940.0,108930.0,1.34847714]
[1748329537156,0.04221422,108940.0,108930.0,1.34847714]
[1748329538818,0.66949954,108940.0,108930.0,0.00444113]
[1748329538972,0.33836881,108940.0,108930.0,0.00444113]
[1748329539525,0.35593004,108940.0,108930.0,0.00444113]
[1748329539760,0.37310536,108940.0,108930.0,0.00444113]
[1748329539947,0.37310536,108940.0,108930.0,0.00344113]
[1748329540098,0.38188617,108940.0,108930.0,0.00344113]
[1748329540293,0.38188617,108940.0,108930.0,0.00144113]
[1748329540514,0.38488617,108940.0,108930.0,0.00144113]
[1748329541294,0.38588617,108940.0,108930.0,0.00144113]
[1748329541589,0.38488617,108940.0,108930.0,0.00144113]
[1748329542006,0.38888617,108940.0,108930.0,0.00244113]
[1748329543181,0.37171085,108940.0,108930.0,0.00244113]
[1748329543386,0.43513285,108940.0,108930.0,0.00244113]
[1748329543529,0.42635204,108940.0,108930.0,0.00244113]
[1748329546323,0.32782482,108940.0,108930.0,0.00244113]
[1748329546527,0.24830282,108940.0,108930.0,0.00244113]
[1748329546962,0.26390282,108940.0,108930.0,0.00244113]
[1748329549376,0.23220282,108940.0,108930.0,0.00244113]
[1748329549839,0.29451106,108940.0,108930.0,0.00244113]
[1748329550476,0.24730282,108940.0,108930.0,0.00244113]
[1748329554522,0.24730282,108940.0,108930.0,0.00344113]
[1748329554705,0.23220282,108940.0,108930.0,0.00344113]
[1748329554915,0.23220282,108940.0,108930.0,0.03434113]
[1748329555067,0.23220282,108940.0,108930.0,0.42862113]
[1748329555287,0.23220282,108940.0,108930.0,0.41282113]
[1748329556729,0.23220282,108940.0,108930.0,0.39772113]
[1748329558167,0.23220282,108940.0,108930.0,0.41332113]
[1748329560914,0.23220282,108940.0,108930.0,0.39772113]
[1748329561979,0.23220282,108940.0,108930.0,0.96857879]
[1748329562221,0.24138218,108940.0,108930.0,0.97079593]
[1748329562441,0.02489524,108940.0,108930.0,1.31997554]
[1748329562855,0.01571647,108940.0,108930.0,1.34751654]
[1748329563083,0.03407392,108940.0,108930.0,1.34751654]
[1748329563231,0.04861477,108940.0,108930.0,1.34751654]
[1748329563447,0.01767775,108940.0,108930.0,1.43603805]
[1748329563673,0.01967775,108940.0,108930.0,1.5265836]
[1748329563914,0.02585652,108940.0,108930.0,1.5265836]
[1748329564104,0.01667775,108940.0,108930.0,1.5265836]
[1748329564313,0.02485644,108940.0,108930.0,1.5255836]
[1748329564630,0.03403529,108940.0,108930.0,1.5255836]
[1748329565054,0.04321423,108940.0,108930.0,1.19445287]
[1748329565270,0.04321423,108940.0,108930.0,1.5255836]
[1748329565472,0.05239334,108940.0,108930.0,1.5255836]
[1748329565700,0.04321423,108940.0,108930.0,1.5255836]
[1748329566347,0.04321423,108940.0,108930.0,1.19445287]
[1748329566555,0.02485644,108940.0,108930.0,1.5255836]
[1748329566764,0.01567775,108940.0,108930.0,1.5255836]
[1748329571090,0.01567775,108940.0,108930.0,1.9219036]
[1748329571727,0.01567775,108940.0,108930.0,1.92190359]
[1748329573014,0.0011369,108940.0,108930.0,1.92190359]
[1748329574239,0.0001369,108940.0,108930.0,1.92190359]
[1748329574452,0.0001369,108940.0,108930.0,1.92290359]
[1748329574857,0.0001369,108940.0,108930.0,1.92490359]
[1748329584213,0.0001369,108940.0,108930.0,1.92390359]
[1748329584425,0.0001369,108940.0,108930.0,2.19910358]
[1748329584637,0.0001369,108940.0,108930.0,2.19714358]
[1748329586256,0.0001369,108940.0,108930.0,1.92194358]
[1748329586492,0.0001369,108940.0,108930.0,2.19714358]
[1748329587766,0.0001369,108940.0,108930.0,1.86601285]
[1748329587981,0.0001369,108940.0,108930.0,2.19714358]
[1748329591110,0.0001369,108940.0,108930.0,2.16441776]
[1748329594115,0.0001369,108940.0,108930.0,2.19531776]
[1748329594319,0.0001369,108940.0,108930.0,2.19331776]
[1748329594517,0.0001369,108940.0,108930.0,2.19631776]
[1748329595473,0.0001369,108940.0,108930.0,2.19831776]
[1748329597093,0.04211194,108960.0,108950.0,0.21110498]
[1748329597094,4e-05,108960.0,108950.0,0.21110498]
[1748329597298,4e-05,108960.0,108950.0,1.35987461]
[1748329597741,4e-05,108960.0,108950.0,1.3598746]
[1748329599452,0.07687981,108990.0,108980.0,0.5421776]
[1748329599676,0.07626965,108990.0,108980.0,1.21005869]
[1748329599943,0.05792019,108990.0,108980.0,1.21005868]
[1748329600166,0.00014899,108990.0,108980.0,1.78805175]
[1748329600598,0.00014899,108990.0,108980.0,1.78805174]
[1748329600813,0.01468984,108990.0,108980.0,1.78805174]
[1748329601022,0.00014899,108990.0,108980.0,1.78805174]
[1748329601267,0.00214899,108990.0,108980.0,1.78805174]
[1748329601503,0.00507679,108990.0,108980.0,1.78805173]
[1748329602581,0.00207679,108990.0,108980.0,1.78805173]
[1748329602782,0.00207679,108990.0,108980.0,1.78805172]
[1748329602991,0.00207679,108990.0,108980.0,1.78905172]
[1748329605064,0.00207679,108990.0,108980.0,1.57800485]
[1748329605312,0.06454085,109000.0,108990.0,1.24528896]
[1748329605557,0.05,109000.0,108990.0,0.58346854]
[1748329605758,0.05,109000.0,108990.0,1.24573]
[1748329605973,0.05,109000.0,108990.0,1.24568999]
[1748329606620,0.06418307,109030.0,109020.0,0.21096943]
[1748329606861,0.0341676,109030.0,109020.0,1.20750016]
[1748329607074,0.0341676,109030.0,109020.0,0.87636943]
[1748329607075,0.01786776,109030.0,109020.0,0.87636943]
[1748329607291,0.04323904,109030.0,109020.0,1.20750016]
[1748329607508,0.05992286,109030.0,109020.0,1.20750016]
[1748329607743,0.05137522,109030.0,109020.0,1.20750016]
[1748329607958,0.04220361,109030.0,109020.0,1.20750016]
[1748329608193,0.04620361,109030.0,109020.0,1.20750016]
[1748329608406,0.05537514,109030.0,109020.0,1.20750016]
[1748329608618,0.05141514,109030.0,109020.0,1.20750016]
[1748329608830,0.01472978,109030.0,109020.0,1.20750016]
[1748329609037,0.01472978,109030.0,109020.0,1.20850016]
[1748329609038,0.02890081,109030.0,109020.0,1.20850016]
[1748329609244,0.00518893,109030.0,109020.0,1.54850016]
[1748329609466,0.00518893,109030.0,109020.0,1.57601516]
[1748329609670,0.01472978,109030.0,109020.0,1.59071516]
[1748329609884,0.01672978,109030.0,109020.0,1.59071516]
[1748329610100,0.01672978,109030.0,109020.0,1.57501516]
[1748329610318,0.01472978,109030.0,109020.0,1.57501516]
[1748329610542,0.01472978,109030.0,109020.0,1.35247823]
[1748329610815,0.01572978,109030.0,109020.0,1.68360896]
[1748329614474,0.03407225,109030.0,109020.0,1.68460896]
[1748329614693,0.03407225,109030.0,109020.0,1.40948896]
[1748329614931,0.22667961,109030.0,109020.0,1.00086464]
[1748329615148,0.25737961,109030.0,109020.0,1.33493383]
[1748329615393,0.25737961,109030.0,109020.0,1.3441062]
[1748329615600,0.25737961,109030.0,109020.0,1.35327849]
[1748329616331,0.2482085,109030.0,109020.0,1.3441062]
[1748329617027,0.2482085,109030.0,109020.0,1.3532784]
[1748329619423,0.23903714,109030.0,109020.0,0.002]
[1748329619924,0.3285827,109030.0,109020.0,0.002]
[1748329620176,0.33610109,109030.0,109020.0,0.002]
[1748329620429,0.33610109,109030.0,109020.0,0.001]
[1748329620676,0.24655553,109030.0,109020.0,0.002]
[1748329620929,0.24655553,109030.0,109020.0,0.001]
[1748329622437,0.24855553,109030.0,109020.0,0.001]
[1748329624247,0.03441928,109030.0,109020.0,0.54310016]
[1748329624466,0.2453697,109030.0,109020.0,0.62344964]
[1748329624679,0.08670573,109030.0,109020.0,0.8771296]
[1748329624887,0.08670573,109030.0,109020.0,0.22114172]
[1748329625088,0.08670573,109030.0,109020.0,0.88630172]
[1748329625289,0.08670573,109030.0,109020.0,0.88674266]
[1748329625781,0.07753462,109030.0,109020.0,0.88674266]
[1748329626021,0.03441928,109030.0,109020.0,1.65656693]
[1748329626236,0.02524817,109030.0,109020.0,1.74611248]
[1748329626673,0.02524817,109030.0,109020.0,1.41498175]
[1748329626915,0.03441928,109030.0,109020.0,1.74611247]
[1748329628079,0.03441928,109030.0,109020.0,1.74611246]
[1748329628292,0.02524817,109030.0,109020.0,1.74611246]
[1748329628895,0.02524817,109030.0,109020.0,1.76181246]
[1748329629111,0.02524817,109030.0,109020.0,1.76181245]
[1748329629716,0.02524817,109030.0,109020.0,1.77791245]
[1748329630536,0.02324817,109030.0,109020.0,1.80642745]
[1748329630748,0.02324817,109030.0,109020.0,1.80642744]
[1748329631937,0.02324817,109030.0,109020.0,1.47529671]
[1748329632132,0.02324817,109030.0,109020.0,1.80642744]
[1748329632358,0.02324817,109030.0,109020.0,1.80642743]
[1748329633114,0.00870732,109030.0,109020.0,1.80642743]
[1748329633326,0.00870732,109030.0,109020.0,1.4752967]
[1748329633528,0.00870732,109030.0,109020.0,1.80642742]
[1748329634350,0.00018893,109030.0,109020.0,1.80642742]
[1748329635185,0.00018893,109030.0,109020.0,1.80642741]
[1748329636113,0.00018893,109030.0,109020.0,1.81538741]
[1748329636327,0.00018893,109030.0,109020.0,1.48425668]
[1748329636564,0.00018893,109030.0,109020.0,1.81538741]
[1748329637814,0.00018893,109030.0,109020.0,1.8153874]
[1748329638778,0.00018893,109030.0,109020.0,1.8153474]
[1748329642566,0.00018893,109030.0,109020.0,1.81534739]
[1748329643640,0.00018893,109030.0,109020.0,1.78354739]
[1748329643843,0.00018893,109030.0,109020.0,1.78350739]
[1748329644371,0.00018893,109030.0,109020.0,1.78250739]
[1748329644733,0.00018893,109030.0,109020.0,1.78350739]
[1748329645896,0.00018893,109030.0,109020.0,1.45237666]
[1748329646100,0.00018893,109030.0,109020.0,1.78350739]
[1748329647088,0.00018893,109030.0,109020.0,1.78350738]
[1748329647295,0.00018893,109030.0,109020.0,1.81470738]
[1748329651088,0.00018893,109030.0,109020.0,2.21062738]
[1748329651604,0.0159,109060.0,109050.0,0.21091114]
[1748329651804,0.01639633,109060.0,109050.0,1.04871567]
[1748329652016,0.04703718,109060.0,109050.0,1.04871567]
[1748329652215,0.03249633,109060.0,109050.0,1.04871567]
[1748329652419,0.03249633,109060.0,109050.0,0.75443128]
[1748329652639,0.04703718,109060.0,109050.0,1.08556201]
[1748329653016,0.05560498,109060.0,109050.0,1.08556201]
[1748329653249,0.05660498,109060.0,109050.0,1.36052201]
[1748329653461,0.05860498,109060.0,109050.0,1.36052201]
[1748329654271,0.02660498,109060.0,109050.0,1.4021321]
[1748329654495,0.02660498,109060.0,109050.0,1.40213209]
[1748329654703,0.01206413,109060.0,109050.0,2.06439355]
[1748329654925,0.01206413,109060.0,109050.0,2.06439354]
[1748329655382,0.00149633,109060.0,109050.0,2.06439354]
[1748329655505,0.00149633,109060.0,109050.0,2.06639353]
[1748329656037,0.00049633,109060.0,109050.0,2.06639353]
[1748329656245,0.00049633,109060.0,109050.0,2.06839352]
[1748329656479,0.00053633,109060.0,109050.0,2.06439352]
[1748329656868,0.00053633,109060.0,109050.0,2.06739352]
[1748329657292,0.00053633,109060.0,109050.0,1.41914079]
[1748329657455,0.00053633,109060.0,109050.0,2.08140225]
[1748329657661,0.00053633,109060.0,109050.0,1.41914079]
[1748329657863,0.00053633,109060.0,109050.0,2.08440225]
[1748329658741,0.00053633,109060.0,109050.0,2.08440224]
[1748329660034,0.00053633,109060.0,109050.0,2.08440223]
[1748329662492,0.00053633,109060.0,109050.0,2.08432223]
[1748329662715,0.00053633,109060.0,109050.0,2.08432222]
[1748329662928,0.00053633,109060.0,109050.0,1.06273149]
[1748329663136,0.00053633,109060.0,109050.0,1.72081149]
[1748329664386,0.00053633,109060.0,109050.0,1.72081148]
[1748329664606,0.00053633,109060.0,109050.0,0.71580075]
[1748329664830,0.01593633,109060.0,109050.0,1.04693148]
[1748329664957,0.01593633,109060.0,109050.0,1.73045148]
[1748329665178,0.01593633,109060.0,109050.0,1.04693148]
[1748329665384,0.01593633,109060.0,109050.0,1.73045148]
[1748329665589,0.01593633,109060.0,109050.0,1.72445148]
[1748329665787,0.01593633,109060.0,109050.0,1.72645148]
[1748329666026,0.00053633,109060.0,109050.0,1.72645148]
[1748329666591,0.00053633,109060.0,109050.0,1.39532075]
[1748329666807,0.00053633,109060.0,109050.0,1.72645148]
[1748329667122,0.00053633,109060.0,109050.0,1.04293148]
[1748329667334,0.00053633,109060.0,109050.0,1.72645148]
[1748329667744,0.00053633,109060.0,109050.0,1.72845148]
[1748329667918,0.01693633,109060.0,109050.0,1.72845148]